fUSD/lending_fUSD_20240218
["ID","MTS","AMOUNT","RATE_DAILY","PERIOD"]
[314361660,1708230632729,-1201.67780309,0.00037148,2]
[314361661,1708230632742,-991.339575,0.00037148,2]
[314361662,1708230632756,-5367.76786785,0.00037148,2]
[314361663,1708230632792,-866.30438943,0.00037148,2]
[314361664,1708230632804,-450.25,0.00037148,2]
[314361665,1708230634757,-7857.66899441,0.00037148,2]
[314361671,1708230638409,-377.34890608,0.00037148,2]
[314361672,1708230638466,-1536.27246414,0.00037148,2]
[314361673,1708230638477,-250.0,0.00037314,2]
[314361674,1708230638486,-1199.87,0.00037323,2]
[314361675,1708230638495,-512.0,0.00037325,2]
[314361676,1708230638505,-152.0,0.00037333,4]
[314361677,1708230638514,-268.2,0.00037347,2]
[314361678,1708230638524,-187.32,0.00037355,2]
[314361679,1708230638533,-168.07,0.00037396,2]
[314361680,1708230638541,-1623.0,0.000376,2]
[314361681,1708230638550,-164.51,0.00037615,2]
[314361682,1708230638559,-499.99,0.00037615,2]
[314361683,1708230638568,-172.08,0.00037698,2]
[314361684,1708230638577,-33438.8332,0.00038,2]
[314361685,1708230638586,-1941.06848542,0.00038,5]
[314361686,1708230638596,-297.02635375,0.00038203,2]
[314361687,1708230638605,-858.0,0.00038303,2]
[314361688,1708230638614,-276.0,0.00038303,2]
[314361689,1708230638623,-1005.0,0.00038303,2]
[314361691,1708230638633,-429.0,0.00038303,2]
[314361692,1708230638643,-316.114,0.00038303,2]
[314361693,1708230638651,-1138.0,0.00038303,2]
[314361694,1708230638661,-150.0,0.00038303,2]
[314361695,1708230638674,-321.0,0.00038303,2]
[314361696,1708230638683,-343.0,0.00038303,2]
[314361697,1708230638692,-454.0,0.00038303,2]
[314361698,1708230638702,-389.0,0.00038303,2]
[314361699,1708230638712,-8169.0,0.00038303,2]
[314361700,1708230638721,-4397.59797668,0.00038303,2]
[314361701,1708230638732,-3024.40202332,0.00038303,2]
[314361703,1708230638743,-2691.0,0.00038303,2]
[314361705,1708230638752,-2030.797,0.00038303,2]
[314361707,1708230638761,-1370.0,0.00038303,2]
[314361709,1708230638770,-2929.0,0.00038303,2]
[314361711,1708230638779,-4100.0,0.00038303,2]
[314361713,1708230638788,-1866.0,0.00038303,2]
[314361714,1708230638797,-10508.996,0.00038303,2]
[314361716,1708230638806,-19859.0,0.00038303,2]
[314361718,1708230638814,-2291.0,0.00038303,2]
[314361720,1708230638823,-842.0,0.00038303,2]
[314361722,1708230638833,-626.238,0.00038303,2]
[314361724,1708230638842,-570.04497668,0.00038303,2]
[314361727,1708230638853,-382.95502332,0.00038303,2]
[314361729,1708230638864,-263.18078846,0.00038322,2]
[314361949,1708230640947,-519.58810846,0.00038303,2]
[314361951,1708230640959,-518.41189154,0.00038303,2]
[314361954,1708230640969,-663.31921154,0.00038322,2]
[314361956,1708230640978,-326.93,0.00038356,15]
[314361958,1708230640987,-153.73,0.00038356,2]
[314361960,1708230640996,-155.89466373,0.00038388,2]
[314361962,1708230641005,-297.02635371,0.00038392,2]
[314361964,1708230641015,-1030.43551202,0.000384,2]
[314361965,1708230641024,-13.81410522,0.000385,30]
[314362044,1708230641867,-186.18589478,0.000385,30]
[314362046,1708230641877,-297.02635371,0.0003858,2]
[314362048,1708230641886,-2453.48374381,0.000386,2]
[314362050,1708230641897,-1153.55487858,0.000386,2]
[314362204,1708230643295,-396.77588872,0.00038335,2]
[314362207,1708230643307,-995.9349375,0.00038335,2]
[314362278,1708230644102,-557.28917378,0.00038335,2]
[314362281,1708230644113,-848.62168037,0.000386,2]
[314362285,1708230644132,-2606.96446426,0.000386,2]
[314362299,1708230644210,-641.63399671,0.000386,2]
[314362328,1708230646269,-1255.0,0.00038335,2]
[314362329,1708230646279,-1231.0,0.00038335,2]
[314362330,1708230646288,-161193.70506094,0.000386,2]
[314362331,1708230646327,-5237.00791706,0.000386,2]
[314362332,1708230646381,-7334.07190133,0.000386,2]
[314362333,1708230646491,-75160.24415629,0.000386,2]
[314362334,1708230646518,-1895.66990563,0.000386,2]
[314362335,1708230646529,-321.34416791,0.000386,2]
[314362336,1708230646549,-780.3688039,0.000386,2]
[314362337,1708230646560,-347.44581063,0.000386,2]
[314362338,1708230646572,-652.9326512,0.000386,2]
[314362339,1708230646602,-540.14047444,0.000386,2]
[314362358,1708231831446,-155.0,0.00034995,4]
[314362359,1708231831457,-842.57144501,0.00034996,4]
[314362360,1708231831467,-339.0,0.00035,2]
[314362362,1708231831477,-135.37904849,0.00035028,2]
[314362363,1708231831493,-151.73095151,0.00035028,2]
[314362364,1708231831502,-181.0,0.00035167,2]
[314362365,1708231831512,-194.0,0.00035167,2]
[314362366,1708231831521,-499.66728942,0.00036799,2]
[314362367,1708231831550,-99.60271058,0.00036799,2]
[314362368,1708231831559,-156.24223609,0.00036884,2]
[314362369,1708231831569,-396.93957105,0.00036943,2]
[314362370,1708231831589,-7794.98107219,0.00036943,2]
[314362371,1708231831822,-3195.11935676,0.00036943,2]
[314362373,1708231831831,-250.0,0.00036974,2]
[314362375,1708231831841,-304.27,0.00036979,2]
[314362377,1708231831851,-1000.0,0.00036984,2]
[314362380,1708231831860,-295.83076314,0.00037,2]
[314362381,1708231837810,-1261.87750784,0.00034995,2]
[314362382,1708231837819,-116.30923686,0.00037,2]
[314362383,1708231837828,-410.7,0.00037,2]
[314362384,1708231837837,-312.44640567,0.00037011,4]
[314362385,1708231837846,-154.63,0.00037012,2]
[314362387,1708231837855,-2000.0,0.00037012,2]
[314362389,1708231837864,-200.16129301,0.00037012,2]
[314362889,1708231842616,-759.51168811,0.00037012,2]
[314363040,1708231845443,-3676.84701888,0.00037012,2]
[314363041,1708231845452,-499.99,0.00037012,2]
[314363042,1708231845462,-192.75,0.0003703,2]
[314363043,1708231845472,-1299.8,0.00037076,2]
[314363044,1708231845481,-412.14,0.000371,2]
[314363045,1708231845492,-104.02984513,0.000371,2]
[314363046,1708231845509,-314.97015487,0.000371,2]
[314363047,1708231845518,-412.14,0.00037178,2]
[314363048,1708231845527,-435.26,0.00037178,2]
[314363049,1708231845537,-158.05,0.00037258,2]
[314363050,1708231845547,-1527.67984513,0.00037268,2]
[314363051,1708231845661,-4076.08919771,0.00037268,2]
[314363058,1708233034208,-406.90058087,0.00032888,4]
[314363059,1708233034217,-365.52807372,0.00032889,2]
[314363300,1708233040263,-281.9016917,0.00032889,2]
[314363302,1708233040275,-614.44774242,0.00032889,2]
[314363304,1708233040284,-586.81683113,0.0003289,2]
[314363306,1708233040295,-588.0869101,0.0003289,2]
[314363387,1708233041090,-2446.02637255,0.0003289,2]
[314363389,1708233041100,-150.0,0.00032899,2]
[314363392,1708233041121,-6146.11220389,0.000329,2]
[314363394,1708233041131,-156.24223606,0.00034566,2]
[314363396,1708233041141,-272.75,0.00034666,2]
[314363399,1708233041151,-285.01368853,0.00034991,4]
[314363401,1708233041160,-156.24223606,0.00035607,2]
[314363403,1708233041170,-152.0,0.00036,3]
[314363405,1708233041180,-8485.0,0.00036118,2]
[314363407,1708233041189,-2000.0,0.00036213,2]
[314363409,1708233041198,-250.0,0.00036251,2]
[314363411,1708233041208,-165.62,0.00036302,2]
[314363413,1708233041218,-479.41,0.00036309,2]
[314363415,1708233041227,-160.62,0.00036337,2]
[314363417,1708233041237,-253.55,0.0003649,2]
[314363419,1708233041246,-552.96940609,0.000366,2]
[314363421,1708233041255,-156.24223606,0.00036649,2]
[314363423,1708233041265,-1000.0,0.00036652,2]
[314363425,1708233041275,-272.75,0.0003693,2]
[314363427,1708233041284,-312.44640567,0.00037077,4]
[314363429,1708233041294,-419.0,0.00037078,2]
[314363431,1708233041303,-417.75,0.00037078,2]
[314363433,1708233041316,-1083.16,0.00037137,2]
[314363435,1708233041326,-428.78,0.00037156,2]
[314363437,1708233041335,-836.62,0.00037178,2]
[314363439,1708233041344,-499.99,0.00037252,2]
[314363441,1708233041354,-3000.0,0.00037268,2]
[314363444,1708233041364,-1000.0,0.000373,2]
[314363446,1708233041374,-177.48,0.000375,2]
[314363448,1708233041383,-472.656999,0.0003754,2]
[314363450,1708233041394,-697.62259051,0.0003759,2]
[314363452,1708233041404,-1649.0,0.000376,2]
[314363454,1708233041414,-5000.0,0.000376,2]
[314363456,1708233041423,-1000.0,0.000376,2]
[314363458,1708233041432,-158.06,0.0003761,2]
[314363460,1708233041442,-479.41,0.00037653,2]
[314363462,1708233041451,-156.24223606,0.0003769,2]
[314363464,1708233041461,-14209.0,0.000377,2]
[314363466,1708233041470,-1349.79040132,0.00037722,2]
[314363468,1708233041480,-160.62,0.00037981,2]
[314363470,1708233041489,-31868.11441039,0.00038,2]
[314363472,1708233041499,-1476.1724,0.00038,2]
[314363475,1708233041509,-352.6078,0.00038,2]
[314363477,1708233041519,-216.5126,0.00038,2]
[314363479,1708233041529,-1180.0,0.00038,7]
[314363481,1708233041539,-177.48,0.00038048,2]
[314363483,1708233041548,-10646.57554309,0.00038063,2]
[314363485,1708233041561,-500.0,0.00038099,2]
[314363487,1708233041570,-538.33575976,0.00038099,2]
[314363489,1708233041581,-697.14,0.00038099,2]
[314363491,1708233041591,-500.0,0.00038099,2]
[314363493,1708233041602,-500.0,0.00038099,2]
[314363495,1708233041611,-500.0,0.00038099,2]
[314363497,1708233041621,-500.0,0.00038099,2]
[314363499,1708233041631,-501.00191088,0.00038099,2]
[314363502,1708233041641,-500.0,0.00038099,2]
[314363504,1708233041651,-16025.14,0.00038099,2]
[314363506,1708233041660,-500.0,0.00038099,2]
[314363508,1708233041670,-500.0,0.00038099,2]
[314363510,1708233041681,-500.0,0.00038099,2]
[314363512,1708233041691,-500.0,0.00038099,2]
[314363514,1708233041700,-500.0,0.00038099,2]
[314363516,1708233041710,-500.0,0.00038099,2]
[314363518,1708233041719,-500.0,0.00038099,2]
[314363520,1708233041730,-547.37739447,0.00038099,2]
[314363522,1708233041740,-500.0,0.00038099,2]
[314363524,1708233041750,-500.0,0.00038099,2]
[314363527,1708233041760,-500.0,0.00038099,2]
[314363529,1708233041769,-500.0,0.00038099,2]
[314363531,1708233041779,-537.89406311,0.00038099,2]
[314363533,1708233041790,-500.0,0.00038099,2]
[314363535,1708233041835,-500.0,0.00038099,2]
[314363537,1708233041844,-803.81,0.00038099,2]
[314363540,1708233041856,-500.0,0.00038099,2]
[314363542,1708233041867,-500.0,0.00038099,2]
[314363544,1708233041876,-500.0,0.00038099,2]
[314363546,1708233041885,-500.0,0.00038099,2]
[314363548,1708233041895,-521.46300833,0.00038099,2]
[314363550,1708233041905,-500.0,0.00038099,2]
[314363552,1708233041915,-500.0,0.00038099,2]
[314363555,1708233041925,-500.0,0.00038099,2]
[314363557,1708233041934,-756.65,0.00038099,2]
[314363559,1708233041943,-500.0,0.00038099,2]
[314363561,1708233041953,-500.0,0.00038099,2]
[314363563,1708233041962,-500.0,0.00038099,2]
[314363565,1708233041971,-500.0,0.00038099,2]
[314363567,1708233041980,-570.88541274,0.00038099,2]
[314363569,1708233041990,-505.22717918,0.00038099,5]
[314363571,1708233042000,-523.11232794,0.00038099,2]
[314363573,1708233042010,-500.0,0.00038099,2]
[314363575,1708233042019,-537.11564288,0.00038099,2]
[314363577,1708233042030,-500.0,0.00038099,2]
[314363579,1708233042039,-500.0,0.00038099,2]
[314363581,1708233042048,-500.0,0.00038099,2]
[314363583,1708233042058,-193.0,0.00038099,2]
[314363585,1708233042068,-500.0,0.00038099,2]
[314363587,1708233042077,-2716.02,0.00038099,2]
[314363589,1708233042087,-200000.0,0.000381,3]
[314363592,1708233042096,-207.91844766,0.00038163,2]
[314363594,1708233042106,-177.04572179,0.00038263,17]
[314363596,1708233042115,-221.08545925,0.00038263,8]
[314363598,1708233042124,-10646.57554305,0.00038267,2]
[314363600,1708233042137,-207.91844759,0.00038356,2]
[314363602,1708233042146,-299.68,0.00038356,15]
[314363604,1708233042156,-153.88,0.00038356,2]
[314363606,1708233042165,-295.33721715,0.00038362,2]
[314363608,1708233042175,-150.0,0.00038363,2]
[314363610,1708233042184,-150.16,0.00038363,2]
[314363612,1708233042194,-1866.0,0.00038363,2]
[314363614,1708233042204,-2691.0,0.00038363,2]
[314363616,1708233042213,-953.0,0.00038363,2]
[314363618,1708233042223,-842.0,0.00038363,2]
[314363621,1708233042232,-1231.0,0.00038363,2]
[314363623,1708233042242,-1255.0,0.00038363,2]
[314363625,1708233042251,-216.0,0.00038363,2]
[314363627,1708233042260,-1950.0,0.00038363,2]
[314363629,1708233042271,-1005.0,0.00038363,2]
[314363631,1708233042281,-276.0,0.00038363,2]
[314363633,1708233042290,-429.0,0.00038363,2]
[314363635,1708233042300,-858.0,0.00038363,2]
[314363637,1708233042312,-150.0,0.00038363,2]
[314363639,1708233042321,-321.0,0.00038363,2]
[314363641,1708233042330,-343.0,0.00038363,2]
[314363643,1708233042339,-1138.0,0.00038363,2]
[314363645,1708233042350,-454.0,0.00038363,2]
[314363647,1708233042359,-8169.0,0.00038363,2]
[314363649,1708233042368,-4690.729,0.00038363,2]
[314363652,1708233042378,-2291.0,0.00038363,2]
[314363654,1708233042387,-19859.0,0.00038363,2]
[314363655,1708233042398,-2929.0,0.00038363,2]
[314363658,1708233042407,-4100.0,0.00038363,2]
[314363660,1708233042416,-3071.138,0.00038363,2]
[314363661,1708233042425,-1038.0,0.00038363,2]
[314363664,1708233042435,-155.89466373,0.00038388,2]
[314363666,1708233042444,-923.63748062,0.00038394,2]
[314363668,1708233042457,-714.87662473,0.00038457,4]
[314363670,1708233042467,-349.05742355,0.00038458,4]
[314363672,1708233042476,-500.0,0.00038458,2]
[314363674,1708233042486,-697.14,0.00038458,2]
[314363676,1708233042496,-500.0,0.00038458,2]
[314363678,1708233042505,-501.25464677,0.00038458,2]
[314363680,1708233042514,-500.0,0.00038458,2]
[314363682,1708233042524,-500.0,0.00038458,2]
[314363685,1708233042534,-500.0,0.00038458,2]
[314363687,1708233042543,-13298.67837852,0.00038458,2]
[314363689,1708233042559,-2726.46162148,0.00038458,2]
[314363691,1708233042569,-500.0,0.00038458,2]
[314363693,1708233042578,-612.48135249,0.00038458,2]
[314363695,1708233042587,-500.0,0.00038458,2]
[314363698,1708233042597,-500.0,0.00038458,2]
[314363700,1708233042606,-500.0,0.00038458,2]
[314363702,1708233042616,-239.21851047,0.00038458,2]
[314363728,1708233042913,-999.99,0.00036118,2]
[314363730,1708233042923,-260.78148953,0.00038458,2]
[314363732,1708233042933,-500.0,0.00038458,2]
[314363734,1708233042943,-529.20734104,0.00038458,2]
[314363736,1708233042952,-500.0,0.00038458,2]
[314363738,1708233042962,-608.1381796,0.00038458,2]
[314363740,1708233042971,-500.0,0.00038458,2]
[314363742,1708233042981,-500.0,0.00038458,2]
[314363744,1708233042991,-500.0,0.00038458,2]
[314363747,1708233043001,-325.60958983,0.00038458,2]
[314363767,1708233043183,-478.20041017,0.00038458,2]
[314363769,1708233043194,-500.0,0.00038458,2]
[314363772,1708233043203,-500.0,0.00038458,2]
[314363774,1708233043212,-500.0,0.00038458,2]
[314363776,1708233043221,-500.0,0.00038458,2]
[314363778,1708233043230,-500.0,0.00038458,2]
[314363780,1708233043240,-552.52261872,0.00038458,2]
[314363782,1708233043249,-500.0,0.00038458,2]
[314363784,1708233043268,-756.65,0.00038458,2]
[314363786,1708233043278,-500.0,0.00038458,2]
[314363788,1708233043287,-500.0,0.00038458,2]
[314363789,1708233043296,-500.0,0.00038458,2]
[314363792,1708233043306,-500.0,0.00038458,2]
[314363793,1708233043322,-500.0,0.00038458,2]
[314363796,1708233043332,-500.0,0.00038458,2]
[314363798,1708233043341,-500.0,0.00038458,2]
[314363800,1708233043350,-500.0,0.00038458,2]
[314363802,1708233043359,-500.0,0.00038458,2]
[314363803,1708233043368,-2716.02,0.00038458,2]
[314363806,1708233043378,-200000.0,0.00038459,30]
[314363808,1708233043387,-89405.0852655,0.0003849,3]
[314363810,1708233043396,-221.08545925,0.00038494,8]
[314363812,1708233043406,-5000.0,0.000385,2]
[314363813,1708233043416,-207.91844759,0.00038549,2]
[314363816,1708233043425,-354.56,0.00038596,2]
[314363818,1708233043435,-196583.06007375,0.000386,2]
[314364049,1708233045622,-500.0,0.00038099,2]
[314364051,1708233045631,-112.16638275,0.00038099,2]
[314364057,1708233045679,-387.83361725,0.00038099,2]
[314364058,1708233045688,-371.24911261,0.00038099,2]
[314364065,1708233046098,-8.92044455,0.00038099,2]
[314364066,1708233046107,-500.0,0.00038099,2]
[314364067,1708233046117,-500.0,0.00038099,2]
[314364068,1708233046126,-500.0,0.00038458,2]
[314364069,1708233046135,-500.0,0.00038458,2]
[314364070,1708233046144,-500.0,0.00038458,2]
[314364071,1708233046154,-500.0,0.00038458,2]
[314364072,1708233046163,-2863.5996154,0.00038471,2]
[314364073,1708233046174,-1949.97033606,0.00038471,2]
[314364074,1708233046256,-550.66084252,0.00038471,2]
[314364075,1708233046271,-5282.34474907,0.00038471,2]
[314364076,1708233046281,-19098.4734916,0.000386,2]
[314364093,1708234232002,-298.71,0.00034372,2]
[314364094,1708234232012,-90.01022565,0.00035207,2]
[314364095,1708234232025,-911.60846995,0.00035207,2]
[314364096,1708234232062,-1412.33471359,0.00035207,2]
[314364097,1708234232073,-490.15300562,0.00035208,4]
[314364098,1708234232085,-1000.0,0.000356,2]
[314364099,1708234232095,-477.30752244,0.00035877,4]
[314364100,1708234232105,-250.0,0.00036233,2]
[314364101,1708234232114,-168.07,0.00036233,2]
[314364102,1708234232124,-287.64,0.00036235,2]
[314364103,1708234232133,-2000.0,0.00036324,2]
[314364104,1708234232143,-328.02,0.00036324,2]
[314364105,1708234232152,-166.49,0.00036369,2]
[314364106,1708234232164,-658.3,0.00036369,2]
[314364107,1708234232174,-499.99,0.00036369,2]
[314364108,1708234232183,-14817.64,0.00036591,2]
[314364109,1708234232193,-298.71,0.00036636,2]
[314364110,1708234232202,-187.15347713,0.00036899,2]
[314364111,1708234232211,-1442.81,0.00036941,2]
[314364113,1708234232221,-353.49,0.00037,2]
[314364115,1708234232231,-152.42170121,0.00037098,2]
[314364116,1708234232241,-151.91726605,0.00037098,2]
[314364117,1708234232251,-312.44640567,0.00037139,4]
[314364118,1708234232261,-159.38,0.0003714,2]
[314364119,1708234232270,-155.31,0.00037174,2]
[314364120,1708234232280,-150.0,0.00037303,2]
[314364121,1708234232290,-1000.0,0.00037314,2]
[314364122,1708234232300,-200.0,0.00037373,2]
[314364123,1708234232310,-150.0,0.0003746,2]
[314364124,1708234232319,-287.64,0.00037576,2]
[314364125,1708234232330,-561.47263005,0.00037576,2]
[314364126,1708234232341,-1567.0,0.000376,2]
[314364127,1708234232352,-150.0,0.00037638,2]
[314364128,1708234232363,-150.0,0.00037643,2]
[314364129,1708234232373,-150.0,0.00037677,2]
[314364130,1708234232382,-251.5387465,0.000377,2]
[314364131,1708234232391,-150.0,0.00037716,2]
[314364132,1708234232401,-150.0,0.00037768,2]
[314364133,1708234232410,-150.0,0.00037809,2]
[314364134,1708234232419,-150.0,0.00037816,2]
[314364135,1708234232428,-315.4273,0.00037889,2]
[314364136,1708234232441,-1500.0,0.00037892,2]
[314364137,1708234232450,-161.71434817,0.00037898,2]
[314364138,1708234232460,-1000.0,0.00037899,2]
[314364139,1708234232469,-10877.26269673,0.00037899,2]
[314364140,1708234232478,-165.81409449,0.000379,8]
[314364141,1708234232487,-150.0,0.00037913,2]
[314364142,1708234232497,-150.0,0.00037936,2]
[314364143,1708234232506,-150.0,0.00037967,2]
[314364144,1708234232515,-29000.32488255,0.00037989,2]
[314364145,1708234232525,-1103.8899495,0.00037989,2]
[314364146,1708234232534,-500.0,0.00037998,2]
[314364147,1708234232543,-500.0,0.00037998,2]
[314364148,1708234232554,-500.0,0.00037998,2]
[314364149,1708234232563,-500.0,0.00037998,2]
[314364150,1708234232572,-500.0,0.00037998,2]
[314364151,1708234232581,-3971.48,0.00037998,2]
[314364152,1708234232591,-4288.32,0.00037998,2]
[314364153,1708234232600,-500.0,0.00037998,2]
[314364154,1708234232609,-174.38882766,0.00037998,2]
[314364155,1708234232619,-500.0,0.00037998,2]
[314364156,1708234232628,-500.0,0.00037998,2]
[314364157,1708234232639,-500.0,0.00037998,2]
[314364158,1708234232651,-500.0,0.00037998,2]
[314364159,1708234232660,-500.0,0.00037998,2]
[314364160,1708234232669,-3858.95,0.00037998,2]
[314364161,1708234232679,-500.0,0.00037998,2]
[314364162,1708234232689,-500.0,0.00037998,2]
[314364163,1708234232698,-500.0,0.00037998,2]
[314364164,1708234232707,-500.0,0.00037998,2]
[314364165,1708234232719,-500.0,0.00037998,2]
[314364166,1708234232728,-500.0,0.00037998,2]
[314364167,1708234232737,-500.0,0.00037998,2]
[314364168,1708234232747,-500.0,0.00037998,2]
[314364169,1708234232756,-500.0,0.00037998,2]
[314364170,1708234232765,-500.0,0.00037998,2]
[314364171,1708234232775,-500.0,0.00037998,2]
[314364172,1708234232784,-500.0,0.00037998,2]
[314364173,1708234232794,-500.0,0.00037998,2]
[314364174,1708234232804,-500.0,0.00037998,2]
[314364175,1708234232813,-508.81,0.00037998,2]
[314364176,1708234232822,-1530.35,0.00037998,2]
[314364177,1708234232832,-500.0,0.00037998,2]
[314364178,1708234232842,-500.0,0.00037998,2]
[314364179,1708234232852,-500.0,0.00037998,2]
[314364180,1708234232862,-500.0,0.00037998,2]
[314364181,1708234232873,-500.0,0.00037998,2]
[314364182,1708234232883,-531.9751878,0.00037998,2]
[314364183,1708234232892,-500.0,0.00037998,2]
[314364184,1708234232903,-220.67472198,0.00037998,2]
[314364185,1708234232912,-500.0,0.00037998,2]
[314364186,1708234232923,-705.75,0.00037998,2]
[314364187,1708234232932,-1638.26,0.00037998,2]
[314364188,1708234232942,-500.0,0.00037998,2]
[314364189,1708234232951,-500.0,0.00037998,2]
[314364190,1708234232961,-500.0,0.00037998,2]
[314364191,1708234232970,-585.2474437,0.00037998,2]
[314364192,1708234232982,-500.0,0.00037998,2]
[314364193,1708234232992,-500.0,0.00037998,2]
[314364194,1708234233001,-537.45568212,0.00037998,2]
[314364195,1708234233011,-5314.71,0.00037998,2]
[314364196,1708234233020,-500.0,0.00037998,2]
[314364197,1708234233030,-500.0,0.00037998,2]
[314364198,1708234233040,-1556.05,0.00037998,2]
[314364199,1708234233049,-500.0,0.00037998,2]
[314364200,1708234233059,-635.49,0.00037998,2]
[314364201,1708234233068,-500.0,0.00037998,2]
[314364202,1708234233078,-500.0,0.00037998,2]
[314364203,1708234233088,-537.56827156,0.00037998,2]
[314364204,1708234233097,-500.0,0.00037998,2]
[314364205,1708234233107,-500.0,0.00037998,2]
[314364206,1708234233117,-500.0,0.00037998,2]
[314364207,1708234233127,-500.0,0.00037998,2]
[314364208,1708234233136,-500.0,0.00037998,2]
[314364209,1708234233146,-10405.21,0.00037998,2]
[314364210,1708234233157,-500.0,0.00037998,2]
[314364211,1708234233166,-500.0,0.00037998,2]
[314364212,1708234233175,-500.0,0.00037998,2]
[314364213,1708234233184,-1586.5625,0.00037999,2]
[314364214,1708234233194,-1227.036,0.00037999,2]
[314364215,1708234233203,-113559.1028,0.00037999,2]
[314364216,1708234233213,-500.0,0.00037999,2]
[314364217,1708234233222,-500.0,0.00037999,2]
[314364218,1708234233232,-500.0,0.00037999,2]
[314364219,1708234233241,-500.0,0.00037999,2]
[314364220,1708234233258,-500.0,0.00037999,2]
[314364221,1708234233272,-500.0,0.00037999,2]
[314364222,1708234233281,-500.0,0.00037999,2]
[314364223,1708234233291,-500.0,0.00037999,2]
[314364224,1708234233300,-500.0,0.00037999,2]
[314364225,1708234233311,-500.0,0.00037999,2]
[314364226,1708234233320,-500.0,0.00037999,2]
[314364227,1708234233330,-500.0,0.00037999,2]
[314364228,1708234233339,-500.0,0.00037999,2]
[314364229,1708234233351,-500.0,0.00037999,2]
[314364230,1708234233361,-500.0,0.00037999,2]
[314364231,1708234233370,-836.52,0.00037999,2]
[314364232,1708234233380,-500.0,0.00037999,2]
[314364233,1708234233389,-892.46,0.00037999,2]
[314364234,1708234233399,-536.86,0.00037999,2]
[314364235,1708234233408,-691.11,0.00037999,2]
[314364236,1708234233419,-500.0,0.00037999,2]
[314364237,1708234233428,-1116.46,0.00037999,2]
[314364238,1708234233438,-500.0,0.00037999,2]
[314364239,1708234233448,-639.04,0.00037999,2]
[314364240,1708234233458,-20629.65770445,0.00038,2]
[314364244,1708234237912,-358.3653306,0.00037998,2]
[314364245,1708234238074,-141.6346694,0.00037998,2]
[314364246,1708234238083,-500.0,0.00037998,2]
[314364247,1708234238093,-10408.37487155,0.00038,2]
[314364248,1708234238102,-13676.2880332,0.00038,2]
[314364254,1708234241254,-500.0,0.00037998,2]
[314364255,1708234241264,-360.24752711,0.00037998,2]
[314364269,1708234242994,-265.86012814,0.00037998,2]
[314364270,1708234243011,-500.0,0.00037998,2]
[314364271,1708234243028,-500.0,0.00037998,2]
[314364272,1708234243042,-500.0,0.00037998,2]
[314364273,1708234243054,-1271.5,0.00037998,2]
[314364274,1708234243067,-281.4988668,0.00038,2]
[314364275,1708234243081,-150.0,0.00038008,2]
[314364276,1708234243095,-166.49,0.00038013,2]
[314364277,1708234243112,-168.07,0.00038045,2]
[314364278,1708234243126,-1500.0,0.00038078,2]
[314364279,1708234243140,-180.93252907,0.00038087,2]
[314364280,1708234243150,-500.0,0.00038087,2]
[314364281,1708234243163,-500.0,0.00038087,2]
[314364282,1708234243177,-500.0,0.00038087,2]
[314364283,1708234243189,-561.84330389,0.00038087,2]
[314364284,1708234243202,-500.0,0.00038087,2]
[314364285,1708234243215,-273.43566517,0.00038087,2]
[314364286,1708234243227,-449.41213487,0.00038087,2]
[314364287,1708234243237,-500.0,0.00038087,2]